[Event "Titled Tuesday Blitz August 15 Early 2023"]
[White "Sadhwani, Raunak"]
[Black "Alex_Sahakyan2006"]
[WhiteFideId "35093487"]
[WhiteElo "2995"]
[BlackElo "2722"]
[Result "1-0"]
[Round "8"]
[TimeControl "180+1"]
[Date "2023.08.15"]
[WhiteClock "0:00:51"]
[BlackClock "0:00:08"]
[Board "23"]

1. e4 {[%clk 0:03:00]}  e5 {[%clk 0:02:59]} 2. Nf3 {[%clk 0:03:00]}  Nc6 {[%clk 0:03:00]} 3. Bc4 {[%clk 0:03:01]}  Nf6 {[%clk 0:02:58]} 4. d3 {[%clk 0:03:01]}  Bc5 {[%clk 0:02:58]} 5. Nc3 {[%clk 0:02:57]}  d6 {[%clk 0:02:55]} 6. Na4 {[%clk 0:02:56]}  Bb4+ {[%clk 0:02:55]} 7. c3 {[%clk 0:02:56]}  Ba5 {[%clk 0:02:55]} 8. O-O {[%clk 0:02:55]}  h6 {[%clk 0:02:50]} 9. d4 {[%clk 0:02:49]}  Bg4 {[%clk 0:02:43]} 10. h3 {[%clk 0:02:45]}  Bh5 {[%clk 0:02:38]} 11. Qd3 {[%clk 0:02:38]}  O-O {[%clk 0:02:33]} 12. Nh4 {[%clk 0:02:34]}  exd4 {[%clk 0:02:27]} 13. cxd4 {[%clk 0:02:34]}  d5 {[%clk 0:02:27]} 14. exd5 {[%clk 0:02:32]}  Nxd5 {[%clk 0:02:28]} 15. Qg3 {[%clk 0:02:32]}  Kh8 {[%clk 0:02:15]} 16. Nc5 {[%clk 0:02:22]}  Rb8 {[%clk 0:01:58]} 17. Be3 {[%clk 0:01:25]}  Nce7 {[%clk 0:01:35]} 18. Qe5 {[%clk 0:01:12]}  Nxe3 {[%clk 0:00:55]} 19. fxe3 {[%clk 0:01:13]}  Bg6 {[%clk 0:00:41]} 20. Qg3 {[%clk 0:01:02]}  Bb4 {[%clk 0:00:40]} 21. Nxg6+ {[%clk 0:00:58]}  Nxg6 {[%clk 0:00:32]} 22. Bxf7 {[%clk 0:00:58]}  Bxc5 {[%clk 0:00:23]} 23. Bxg6 {[%clk 0:00:58]}  Bd6 {[%clk 0:00:21]} 24. Qg4 {[%clk 0:00:59]}  Qe7 {[%clk 0:00:20]} 25. e4 {[%clk 0:00:48]}  c6 {[%clk 0:00:14]} 26. e5 {[%clk 0:00:49]}  Bc7 {[%clk 0:00:14]} 27. Be4 {[%clk 0:00:49]}  Bb6 {[%clk 0:00:12]} 28. Qg6 {[%clk 0:00:50]}  Bxd4+ {[%clk 0:00:12]} 29. Kh1 {[%clk 0:00:50]}  Rxf1+ {[%clk 0:00:08]} 30. Rxf1 {[%clk 0:00:51]} 1-0


[Site "https://www.chess.com"]

[Event "Titled Tuesday Blitz August 15 Early 2023"]
[White "Kuznetsov, Felix"]
[Black "gmbenjaminbok"]
[WhiteFideId "34147990"]
[WhiteElo "2707"]
[BlackElo "2942"]
[Result "1-0"]
[Round "8"]
[TimeControl "180+1"]
[Date "2023.08.15"]
[WhiteClock "0:00:53"]
[BlackClock "0:00:14"]
[Board "26"]

1. e4 {[%clk 0:02:58]}  c5 {[%clk 0:02:59]} 2. Nf3 {[%clk 0:02:58]}  d6 {[%clk 0:02:59]} 3. d4 {[%clk 0:02:58]}  cxd4 {[%clk 0:03:00]} 4. Nxd4 {[%clk 0:02:58]}  Nf6 {[%clk 0:03:00]} 5. Nc3 {[%clk 0:02:59]}  a6 {[%clk 0:03:01]} 6. Be3 {[%clk 0:02:59]}  e5 {[%clk 0:03:01]} 7. Nb3 {[%clk 0:02:59]}  Be6 {[%clk 0:03:00]} 8. Qd2 {[%clk 0:02:59]}  Be7 {[%clk 0:02:59]} 9. O-O-O {[%clk 0:03:00]}  Nbd7 {[%clk 0:02:58]} 10. f4 {[%clk 0:03:00]}  b5 {[%clk 0:02:57]} 11. f5 {[%clk 0:02:55]}  Bc4 {[%clk 0:02:57]} 12. Kb1 {[%clk 0:02:55]}  Rc8 {[%clk 0:02:50]} 13. g4 {[%clk 0:02:54]}  b4 {[%clk 0:02:31]} 14. Bxc4 {[%clk 0:02:44]}  Rxc4 {[%clk 0:02:25]} 15. Nd5 {[%clk 0:02:42]}  Rxe4 {[%clk 0:02:00]} 16. Nxf6+ {[%clk 0:02:14]}  Nxf6 {[%clk 0:01:49]} 17. h3 {[%clk 0:02:06]}  Rc4 {[%clk 0:01:34]} 18. g5 {[%clk 0:02:02]}  Nd7 {[%clk 0:00:48]} 19. Qd5 {[%clk 0:01:58]}  Qc7 {[%clk 0:00:25]} 20. Na5 {[%clk 0:01:27]}  Rxc2 {[%clk 0:00:25]} 21. Rc1 {[%clk 0:01:28]}  Rxc1+ {[%clk 0:00:24]} 22. Rxc1 {[%clk 0:01:29]}  Nc5 {[%clk 0:00:25]} 23. f6 {[%clk 0:01:20]}  gxf6 {[%clk 0:00:18]} 24. gxf6 {[%clk 0:01:21]}  Bxf6 {[%clk 0:00:17]} 25. Bxc5 {[%clk 0:01:19]}  dxc5 {[%clk 0:00:16]} 26. Rxc5 {[%clk 0:01:19]}  Qd7 {[%clk 0:00:13]} 27. Qf3 {[%clk 0:00:50]}  Ke7 {[%clk 0:00:08]} 28. Nc6+ {[%clk 0:00:48]}  Ke6 {[%clk 0:00:06]} 29. Qg4+ {[%clk 0:00:44]}  Kd6 {[%clk 0:00:05]} 30. Rd5+ {[%clk 0:00:44]}  Kxd5 {[%clk 0:00:04]} 31. Qxd7+ {[%clk 0:00:45]}  Ke4 {[%clk 0:00:05]} 32. Nxb4 {[%clk 0:00:44]}  Rg8 {[%clk 0:00:04]} 33. Qd3+ {[%clk 0:00:43]}  Kf4 {[%clk 0:00:04]} 34. Nd5+ {[%clk 0:00:44]}  Kg5 {[%clk 0:00:04]} 35. Qg3+ {[%clk 0:00:45]}  Kh6 {[%clk 0:00:05]} 36. Qxg8 {[%clk 0:00:45]}  Bg5 {[%clk 0:00:05]} 37. Qxf7 {[%clk 0:00:44]}  e4 {[%clk 0:00:05]} 38. Qf5 {[%clk 0:00:44]}  e3 {[%clk 0:00:05]} 39. Nxe3 {[%clk 0:00:45]}  Bxe3 {[%clk 0:00:05]} 40. Qe6+ {[%clk 0:00:45]}  Kh5 {[%clk 0:00:06]} 41. Qxe3 {[%clk 0:00:46]}  Kh4 {[%clk 0:00:07]} 42. Qa7 {[%clk 0:00:46]}  a5 {[%clk 0:00:07]} 43. Qxh7+ {[%clk 0:00:47]}  Kg3 {[%clk 0:00:06]} 44. Qa7 {[%clk 0:00:47]}  a4 {[%clk 0:00:07]} 45. Qxa4 {[%clk 0:00:48]}  Kh2 {[%clk 0:00:08]} 46. Qb3 {[%clk 0:00:48]}  Kg2 {[%clk 0:00:08]} 47. Qe3 {[%clk 0:00:48]}  Kh2 {[%clk 0:00:09]} 48. Qf3 {[%clk 0:00:48]}  Kg1 {[%clk 0:00:10]} 49. Qe2 {[%clk 0:00:48]}  Kh1 {[%clk 0:00:10]} 50. Kc2 {[%clk 0:00:49]}  Kg1 {[%clk 0:00:11]} 51. Kd3 {[%clk 0:00:50]}  Kh1 {[%clk 0:00:12]} 52. Ke3 {[%clk 0:00:51]}  Kg1 {[%clk 0:00:13]} 53. Kf3 {[%clk 0:00:52]}  Kh1 {[%clk 0:00:13]} 54. Kg3 {[%clk 0:00:53]}  Kg1 {[%clk 0:00:14]} 55. Qe1# {[%clk 0:00:53]} 1-0


[Site "https://www.chess.com"]

[Event "Titled Tuesday Blitz August 15 Early 2023"]
[White "Papasimakopoulos, Alexandros"]
[Black "Demchenko, Anton"]
[WhiteFideId "4244125"]
[BlackFideId "4160258"]
[WhiteElo "2699"]
[BlackElo "2906"]
[Result "1/2-1/2"]
[Round "8"]
[TimeControl "180+1"]
[Date "2023.08.15"]
[WhiteClock "0:01:44"]
[BlackClock "0:00:05"]
[Board "27"]

1. d4 {[%clk 0:02:59]}  Nf6 {[%clk 0:02:59]} 2. c4 {[%clk 0:03:00]}  e6 {[%clk 0:02:59]} 3. Nc3 {[%clk 0:03:00]}  d5 {[%clk 0:02:58]} 4. cxd5 {[%clk 0:03:00]}  exd5 {[%clk 0:02:59]} 5. Bg5 {[%clk 0:03:00]}  c6 {[%clk 0:02:59]} 6. e3 {[%clk 0:03:00]}  h6 {[%clk 0:02:55]} 7. Bh4 {[%clk 0:03:00]}  Be7 {[%clk 0:02:56]} 8. Bd3 {[%clk 0:03:00]}  O-O {[%clk 0:02:56]} 9. Qc2 {[%clk 0:03:01]}  Re8 {[%clk 0:02:45]} 10. Nf3 {[%clk 0:03:01]}  Ne4 {[%clk 0:02:39]} 11. Bxe7 {[%clk 0:03:02]}  Qxe7 {[%clk 0:02:39]} 12. Bxe4 {[%clk 0:03:03]}  dxe4 {[%clk 0:02:39]} 13. Nd2 {[%clk 0:03:04]}  Bf5 {[%clk 0:02:39]} 14. O-O {[%clk 0:03:04]}  Nd7 {[%clk 0:02:32]} 15. Nc4 {[%clk 0:03:03]}  Qg5 {[%clk 0:02:16]} 16. Ne2 {[%clk 0:02:59]}  Qf6 {[%clk 0:01:56]} 17. b4 {[%clk 0:02:53]}  Rad8 {[%clk 0:01:45]} 18. a4 {[%clk 0:02:51]}  a6 {[%clk 0:01:24]} 19. Rfc1 {[%clk 0:02:46]}  h5 {[%clk 0:01:24]} 20. b5 {[%clk 0:02:45]}  axb5 {[%clk 0:01:21]} 21. axb5 {[%clk 0:02:46]}  cxb5 {[%clk 0:01:21]} 22. Na5 {[%clk 0:02:47]}  h4 {[%clk 0:01:10]} 23. h3 {[%clk 0:02:44]}  Ra8 {[%clk 0:00:49]} 24. Nxb7 {[%clk 0:02:42]}  Rxa1 {[%clk 0:00:49]} 25. Rxa1 {[%clk 0:02:43]}  Qb6 {[%clk 0:00:46]} 26. Nc5 {[%clk 0:02:40]}  b4 {[%clk 0:00:34]} 27. Qc4 {[%clk 0:02:32]}  Rb8 {[%clk 0:00:29]} 28. Rb1 {[%clk 0:02:27]}  Qb5 {[%clk 0:00:24]} 29. Qxb5 {[%clk 0:02:25]}  Rxb5 {[%clk 0:00:25]} 30. Nc3 {[%clk 0:02:22]}  Rxc5 {[%clk 0:00:24]} 31. dxc5 {[%clk 0:02:18]}  bxc3 {[%clk 0:00:25]} 32. c6 {[%clk 0:02:18]}  Nb6 {[%clk 0:00:14]} 33. Kf1 {[%clk 0:02:07]}  Nc8 {[%clk 0:00:12]} 34. Rc1 {[%clk 0:02:07]}  Kf8 {[%clk 0:00:12]} 35. Rxc3 {[%clk 0:02:07]}  Ke7 {[%clk 0:00:13]} 36. Rc5 {[%clk 0:02:07]}  g6 {[%clk 0:00:13]} 37. Rd5 {[%clk 0:02:08]}  Ke6 {[%clk 0:00:09]} 38. Rd8 {[%clk 0:02:06]}  Ke7 {[%clk 0:00:10]} 39. c7 {[%clk 0:02:04]}  Bd7 {[%clk 0:00:07]} 40. Ke2 {[%clk 0:02:03]}  Nd6 {[%clk 0:00:07]} 41. Kd2 {[%clk 0:02:02]}  g5 {[%clk 0:00:02]} 42. Kc2 {[%clk 0:02:00]}  f5 {[%clk 0:00:02]} 43. Kb3 {[%clk 0:02:00]}  f4 {[%clk 0:00:03]} 44. exf4 {[%clk 0:01:56]}  gxf4 {[%clk 0:00:03]} 45. Kc2 {[%clk 0:01:57]}  f3 {[%clk 0:00:03]} 46. gxf3 {[%clk 0:01:53]}  exf3 {[%clk 0:00:04]} 47. Kd2 {[%clk 0:01:53]}  Bxh3 {[%clk 0:00:04]} 48. Ke3 {[%clk 0:01:52]}  Bg4 {[%clk 0:00:04]} 49. Rg8 {[%clk 0:01:49]}  Be6 {[%clk 0:00:04]} 50. Rh8 {[%clk 0:01:49]}  h3 {[%clk 0:00:04]} 51. Kxf3 {[%clk 0:01:48]}  Kd7 {[%clk 0:00:04]} 52. Kg3 {[%clk 0:01:41]}  Kxc7 {[%clk 0:00:03]} 53. Rxh3 {[%clk 0:01:41]}  Bxh3 {[%clk 0:00:03]} 54. Kxh3 {[%clk 0:01:42]}  Kd7 {[%clk 0:00:04]} 55. f4 {[%clk 0:01:43]}  Ke6 {[%clk 0:00:05]} 56. f5+ {[%clk 0:01:44]}  Kf6 {[%clk 0:00:04]} 57. Kg2 {[%clk 0:01:44]}  Nxf5 {[%clk 0:00:05]} 1/2-1/2


[Site "https://www.chess.com"]

[Event "Titled Tuesday Blitz August 15 Early 2023"]
[White "Grigorjev, Iljya"]
[Black "Matinian, Nikita"]
[WhiteFideId "24159565"]
[BlackFideId "24129100"]
[WhiteElo "2902"]
[BlackElo "2695"]
[Result "0-1"]
[Round "8"]
[TimeControl "180+1"]
[Date "2023.08.15"]
[WhiteClock "0:00:03"]
[BlackClock "0:00:07"]
[Board "28"]

1. d4 {[%clk 0:03:00]}  Nf6 {[%clk 0:02:59]} 2. c4 {[%clk 0:03:01]}  g6 {[%clk 0:03:00]} 3. Nc3 {[%clk 0:03:01]}  Bg7 {[%clk 0:03:01]} 4. e4 {[%clk 0:03:02]}  d6 {[%clk 0:03:01]} 5. h3 {[%clk 0:03:03]}  e5 {[%clk 0:03:01]} 6. d5 {[%clk 0:02:58]}  a5 {[%clk 0:03:01]} 7. Be3 {[%clk 0:02:57]}  Na6 {[%clk 0:03:01]} 8. Nf3 {[%clk 0:02:47]}  b6 {[%clk 0:02:48]} 9. Be2 {[%clk 0:02:34]}  Nc5 {[%clk 0:02:48]} 10. Nd2 {[%clk 0:02:34]}  h5 {[%clk 0:02:44]} 11. b3 {[%clk 0:02:27]}  h4 {[%clk 0:02:44]} 12. a3 {[%clk 0:02:07]}  Bh6 {[%clk 0:02:44]} 13. Bxh6 {[%clk 0:02:08]}  Rxh6 {[%clk 0:02:45]} 14. b4 {[%clk 0:02:08]}  Nb7 {[%clk 0:02:20]} 15. O-O {[%clk 0:02:07]}  Nh5 {[%clk 0:02:12]} 16. Bxh5 {[%clk 0:01:54]}  Rxh5 {[%clk 0:02:13]} 17. f4 {[%clk 0:01:55]}  exf4 {[%clk 0:02:07]} 18. Rxf4 {[%clk 0:01:56]}  Qg5 {[%clk 0:01:57]} 19. Qf3 {[%clk 0:01:56]}  axb4 {[%clk 0:01:38]} 20. Rxf7 {[%clk 0:01:18]}  Bf5 {[%clk 0:01:38]} 21. exf5 {[%clk 0:00:58]}  Kxf7 {[%clk 0:01:34]} 22. Rf1 {[%clk 0:00:46]}  gxf5 {[%clk 0:01:14]} 23. Nde4 {[%clk 0:00:42]}  Qg6 {[%clk 0:01:14]} 24. Nb5 {[%clk 0:00:41]}  Kg8 {[%clk 0:01:12]} 25. Nd2 {[%clk 0:00:26]}  bxa3 {[%clk 0:00:40]} 26. Nxc7 {[%clk 0:00:26]}  Rc8 {[%clk 0:00:27]} 27. Ne6 {[%clk 0:00:26]}  Rh7 {[%clk 0:00:18]} 28. Qxa3 {[%clk 0:00:23]}  Nc5 {[%clk 0:00:18]} 29. Nf4 {[%clk 0:00:22]}  Qf6 {[%clk 0:00:17]} 30. Nf3 {[%clk 0:00:18]}  Re8 {[%clk 0:00:16]} 31. Ne6 {[%clk 0:00:14]}  Nxe6 {[%clk 0:00:15]} 32. dxe6 {[%clk 0:00:15]}  Qxe6 {[%clk 0:00:14]} 33. Ng5 {[%clk 0:00:08]}  Qxc4 {[%clk 0:00:15]} 34. Nxh7 {[%clk 0:00:07]}  Qd4+ {[%clk 0:00:15]} 35. Kh1 {[%clk 0:00:06]}  Kxh7 {[%clk 0:00:15]} 36. Qf3 {[%clk 0:00:05]}  Re5 {[%clk 0:00:08]} 37. Qh5+ {[%clk 0:00:05]}  Kg7 {[%clk 0:00:09]} 38. Qg5+ {[%clk 0:00:05]}  Kf7 {[%clk 0:00:09]} 39. Qh5+ {[%clk 0:00:04]}  Ke6 {[%clk 0:00:08]} 40. Qg6+ {[%clk 0:00:04]}  Kd5 {[%clk 0:00:09]} 41. Qf7+ {[%clk 0:00:04]}  Kc5 {[%clk 0:00:07]} 42. Rc1+ {[%clk 0:00:04]}  Kb4 {[%clk 0:00:08]} 43. Qa2 {[%clk 0:00:04]}  Re3 {[%clk 0:00:08]} 44. Rb1+ {[%clk 0:00:04]}  Kc5 {[%clk 0:00:08]} 45. Qc2+ {[%clk 0:00:04]}  Rc3 {[%clk 0:00:08]} 46. Qxf5+ {[%clk 0:00:04]}  d5 {[%clk 0:00:08]} 47. Qc8+ {[%clk 0:00:04]}  Kd6 {[%clk 0:00:08]} 48. Qf8+ {[%clk 0:00:05]}  Kc6 {[%clk 0:00:08]} 49. Qe8+ {[%clk 0:00:05]}  Kc7 {[%clk 0:00:07]} 50. Rf1 {[%clk 0:00:05]}  Kb7 {[%clk 0:00:05]} 51. Qd7+ {[%clk 0:00:04]}  Rc7 {[%clk 0:00:05]} 52. Qb5 {[%clk 0:00:03]}  Qc4 {[%clk 0:00:06]} 53. Qe8 {[%clk 0:00:03]}  Qxf1+ {[%clk 0:00:05]} 54. Kh2 {[%clk 0:00:03]}  Qf4+ {[%clk 0:00:06]} 55. Kg1 {[%clk 0:00:03]}  Rc1+ {[%clk 0:00:07]} 0-1


[Site "https://www.chess.com"]

[Event "Titled Tuesday Blitz August 15 Early 2023"]
[White "Ozen, Deniz"]
[Black "Arias, Juan Cruz"]
[WhiteFideId "6349196"]
[BlackFideId "118540"]
[WhiteElo "2852"]
[BlackElo "2653"]
[Result "1-0"]
[Round "8"]
[TimeControl "180+1"]
[Date "2023.08.15"]
[WhiteClock "0:00:09"]
[BlackClock "0:00:23"]
[Board "30"]

1. e4 {[%clk 0:03:00]}  c6 {[%clk 0:02:59]} 2. Nc3 {[%clk 0:02:59]}  d5 {[%clk 0:03:00]} 3. Nf3 {[%clk 0:03:00]}  dxe4 {[%clk 0:03:00]} 4. Nxe4 {[%clk 0:03:00]}  Nf6 {[%clk 0:03:00]} 5. Qe2 {[%clk 0:03:01]}  Nxe4 {[%clk 0:03:00]} 6. Qxe4 {[%clk 0:03:01]}  Be6 {[%clk 0:03:01]} 7. Be2 {[%clk 0:02:49]}  Nd7 {[%clk 0:02:59]} 8. O-O {[%clk 0:02:45]}  g6 {[%clk 0:02:59]} 9. d4 {[%clk 0:02:36]}  Bf5 {[%clk 0:02:57]} 10. Qh4 {[%clk 0:02:36]}  Bxc2 {[%clk 0:02:56]} 11. d5 {[%clk 0:02:23]}  cxd5 {[%clk 0:02:52]} 12. Qd4 {[%clk 0:02:22]}  e5 {[%clk 0:01:52]} 13. Qxd5 {[%clk 0:02:01]}  Bg7 {[%clk 0:01:52]} 14. Bg5 {[%clk 0:01:43]}  f6 {[%clk 0:01:46]} 15. Rac1 {[%clk 0:01:29]}  Ba4 {[%clk 0:01:37]} 16. Be3 {[%clk 0:00:58]}  Bc6 {[%clk 0:01:36]} 17. Qb3 {[%clk 0:00:59]}  Qe7 {[%clk 0:01:32]} 18. Rfd1 {[%clk 0:00:58]}  Rc8 {[%clk 0:01:02]} 19. Bxa7 {[%clk 0:00:52]}  Qf7 {[%clk 0:01:02]} 20. Bc4 {[%clk 0:00:49]}  Qe7 {[%clk 0:01:02]} 21. Be3 {[%clk 0:00:37]}  f5 {[%clk 0:00:58]} 22. Ng5 {[%clk 0:00:31]}  f4 {[%clk 0:00:54]} 23. Bf7+ {[%clk 0:00:16]}  Kf8 {[%clk 0:00:54]} 24. Rxc6 {[%clk 0:00:12]}  bxc6 {[%clk 0:00:44]} 25. Be6 {[%clk 0:00:10]}  fxe3 {[%clk 0:00:36]} 26. Rxd7 {[%clk 0:00:09]}  e2 {[%clk 0:00:32]} 27. Qf3+ {[%clk 0:00:07]}  Qf6 {[%clk 0:00:25]} 28. Qxf6+ {[%clk 0:00:07]}  Bxf6 {[%clk 0:00:25]} 29. Rf7+ {[%clk 0:00:08]}  Ke8 {[%clk 0:00:25]} 30. Bd7+ {[%clk 0:00:08]}  Kd8 {[%clk 0:00:23]} 31. Ne6# {[%clk 0:00:09]} 1-0


[Site "https://www.chess.com"]

[Event "Titled Tuesday Blitz August 15 Early 2023"]
[White "Nenezic, Marko"]
[Black "SmirnovAlexandrA"]
[WhiteFideId "912123"]
[WhiteElo "2838"]
[BlackElo "2641"]
[Result "0-1"]
[Round "8"]
[TimeControl "180+1"]
[Date "2023.08.15"]
[WhiteClock "0:00:06"]
[BlackClock "0:00:13"]
[Board "32"]

1. d4 {[%clk 0:03:00]}  c5 {[%clk 0:02:49]} 2. d5 {[%clk 0:03:00]}  d6 {[%clk 0:02:49]} 3. Nc3 {[%clk 0:02:58]}  g6 {[%clk 0:02:47]} 4. e4 {[%clk 0:02:58]}  Bg7 {[%clk 0:02:48]} 5. Bb5+ {[%clk 0:02:59]}  Nd7 {[%clk 0:02:46]} 6. a4 {[%clk 0:02:59]}  Nf6 {[%clk 0:02:44]} 7. a5 {[%clk 0:02:57]}  a6 {[%clk 0:02:25]} 8. Bd3 {[%clk 0:02:57]}  O-O {[%clk 0:02:24]} 9. Nf3 {[%clk 0:02:57]}  e6 {[%clk 0:02:23]} 10. dxe6 {[%clk 0:02:36]}  fxe6 {[%clk 0:02:24]} 11. Bc4 {[%clk 0:02:36]}  Qe7 {[%clk 0:02:21]} 12. O-O {[%clk 0:02:36]}  Rb8 {[%clk 0:02:12]} 13. Re1 {[%clk 0:02:21]}  b5 {[%clk 0:02:06]} 14. axb6 {[%clk 0:02:21]}  Rxb6 {[%clk 0:02:06]} 15. Bg5 {[%clk 0:02:07]}  Rxb2 {[%clk 0:01:56]} 16. e5 {[%clk 0:01:53]}  Nxe5 {[%clk 0:01:53]} 17. Nxe5 {[%clk 0:01:54]}  dxe5 {[%clk 0:01:54]} 18. Rxe5 {[%clk 0:01:53]}  Rb6 {[%clk 0:01:45]} 19. Nd5 {[%clk 0:01:46]}  Qd6 {[%clk 0:01:43]} 20. Nxb6 {[%clk 0:01:18]}  Qxe5 {[%clk 0:01:43]} 21. Nxc8 {[%clk 0:01:19]}  Qxg5 {[%clk 0:01:36]} 22. Rxa6 {[%clk 0:01:10]}  Kh8 {[%clk 0:01:26]} 23. Nd6 {[%clk 0:01:03]}  Ng4 {[%clk 0:01:25]} 24. Ra8 {[%clk 0:01:02]}  Qf4 {[%clk 0:01:14]} 25. Rxf8+ {[%clk 0:01:00]}  Qxf8 {[%clk 0:01:14]} 26. Ne4 {[%clk 0:00:51]}  h5 {[%clk 0:01:13]} 27. Bxe6 {[%clk 0:00:48]}  Qf4 {[%clk 0:01:10]} 28. Bxg4 {[%clk 0:00:42]}  Qxe4 {[%clk 0:01:10]} 29. Be2 {[%clk 0:00:37]}  Bd4 {[%clk 0:01:06]} 30. Bd3 {[%clk 0:00:34]}  Qf4 {[%clk 0:01:04]} 31. Qe1 {[%clk 0:00:34]}  Kg7 {[%clk 0:01:00]} 32. g3 {[%clk 0:00:34]}  Qe5 {[%clk 0:00:57]} 33. Be4 {[%clk 0:00:33]}  c4 {[%clk 0:00:54]} 34. Kg2 {[%clk 0:00:32]}  c3 {[%clk 0:00:54]} 35. Qe2 {[%clk 0:00:32]}  Bb6 {[%clk 0:00:50]} 36. Qc4 {[%clk 0:00:29]}  Qc5 {[%clk 0:00:50]} 37. Qe2 {[%clk 0:00:28]}  Qe5 {[%clk 0:00:50]} 38. h3 {[%clk 0:00:27]}  Qd4 {[%clk 0:00:47]} 39. Bd3 {[%clk 0:00:24]}  Qd5+ {[%clk 0:00:40]} 40. Kh2 {[%clk 0:00:25]}  Qc5 {[%clk 0:00:39]} 41. Kg2 {[%clk 0:00:23]}  Qd5+ {[%clk 0:00:38]} 42. Be4 {[%clk 0:00:23]}  Qd4 {[%clk 0:00:37]} 43. g4 {[%clk 0:00:21]}  hxg4 {[%clk 0:00:37]} 44. hxg4 {[%clk 0:00:19]}  Qe5 {[%clk 0:00:35]} 45. Qd3 {[%clk 0:00:16]}  Qd4 {[%clk 0:00:34]} 46. Qf3 {[%clk 0:00:16]}  Qf6 {[%clk 0:00:32]} 47. Qg3 {[%clk 0:00:16]}  Qd4 {[%clk 0:00:23]} 48. Qf4 {[%clk 0:00:14]}  Qf6 {[%clk 0:00:22]} 49. Qg3 {[%clk 0:00:14]}  Qd4 {[%clk 0:00:22]} 50. Bd3 {[%clk 0:00:14]}  Qd5+ {[%clk 0:00:21]} 51. f3 {[%clk 0:00:14]}  Qd4 {[%clk 0:00:20]} 52. Qe1 {[%clk 0:00:14]}  Qe3 {[%clk 0:00:19]} 53. Qxc3+ {[%clk 0:00:14]}  Kh6 {[%clk 0:00:19]} 54. Qh8+ {[%clk 0:00:12]}  Kg5 {[%clk 0:00:18]} 55. Qh1 {[%clk 0:00:06]}  Qf2+ {[%clk 0:00:18]} 56. Kh3 {[%clk 0:00:07]}  Bc7 {[%clk 0:00:14]} 57. Qg2 {[%clk 0:00:06]}  Qh4# {[%clk 0:00:13]} 0-1


[Site "https://www.chess.com"]

[Event "Titled Tuesday Blitz August 15 Early 2023"]
[White "Klukin, Kirill"]
[Black "Vlassov, Nikolai"]
[WhiteFideId "24199273"]
[BlackFideId "4103360"]
[WhiteElo "2821"]
[BlackElo "2623"]
[Result "1-0"]
[Round "8"]
[TimeControl "180+1"]
[Date "2023.08.15"]
[WhiteClock "0:01:47"]
[BlackClock "0:01:59"]
[Board "34"]

1. d4 {[%clk 0:03:00]}  Nf6 {[%clk 0:02:59]} 2. Nf3 {[%clk 0:03:00]}  e6 {[%clk 0:02:59]} 3. e3 {[%clk 0:03:00]}  c5 {[%clk 0:02:59]} 4. Bd3 {[%clk 0:02:59]}  b6 {[%clk 0:03:00]} 5. O-O {[%clk 0:03:00]}  Bb7 {[%clk 0:03:00]} 6. c4 {[%clk 0:03:00]}  Be7 {[%clk 0:02:59]} 7. Nc3 {[%clk 0:03:00]}  cxd4 {[%clk 0:02:59]} 8. exd4 {[%clk 0:03:01]}  d5 {[%clk 0:02:59]} 9. cxd5 {[%clk 0:03:02]}  Nxd5 {[%clk 0:02:59]} 10. Ne5 {[%clk 0:03:03]}  O-O {[%clk 0:02:58]} 11. Qh5 {[%clk 0:03:03]}  g6 {[%clk 0:02:54]} 12. Qh3 {[%clk 0:03:01]}  Nd7 {[%clk 0:02:51]} 13. Bh6 {[%clk 0:02:55]}  Re8 {[%clk 0:02:49]} 14. Bb5 {[%clk 0:02:48]}  N5f6 {[%clk 0:02:38]} 15. Rfe1 {[%clk 0:02:42]}  a6 {[%clk 0:02:36]} 16. Nxf7 {[%clk 0:02:40]}  Qb8 {[%clk 0:02:16]} 17. Bxd7 {[%clk 0:02:27]}  Nxd7 {[%clk 0:02:13]} 18. Qxe6 {[%clk 0:02:20]}  Nf8 {[%clk 0:02:13]} 19. Qb3 {[%clk 0:02:00]}  Qc7 {[%clk 0:02:03]} 20. Nd6+ {[%clk 0:01:48]}  Kh8 {[%clk 0:01:59]} 21. Qf7 {[%clk 0:01:47]} 1-0


[Site "https://www.chess.com"]